fUSD/lending_fUSD_20241223
["ID","MTS","AMOUNT","RATE_DAILY","PERIOD"]
[346368523,1734915047280,-164.35430254,0.00019845,2]
[346368524,1734915047289,-5800.0,0.00019883,2]
[346368525,1734915047299,-1294.135,0.00019887,2]
[346368526,1734915047312,-5800.0,0.00019892,2]
[346368527,1734915047322,-250.54,0.00019895,2]
[346368528,1734915047333,-5800.0,0.000199,2]
[346368529,1734915047343,-164.35430254,0.000199,2]
[346368530,1734915047352,-2920.0737676,0.000199,2]
[346368531,1734915047362,-167.96831494,0.000199,2]
[346368532,1734915047372,-1146.0,0.000199,2]
[346368533,1734915047382,-209.0,0.0001992,2]
[346368534,1734915047392,-152.89241984,0.00019973,2]
[346368535,1734915047402,-500.0,0.00019973,2]
[346368536,1734915047411,-512.90624764,0.00019973,2]
[346368537,1734915047421,-333.122309,0.0001999,2]
[346368538,1734915047431,-333.122309,0.0001999,3]
[346368539,1734915047441,-333.122309,0.00019991,3]
[346368540,1734915047451,-333.122309,0.00019991,2]
[346368541,1734915047461,-333.122309,0.00019992,2]
[346368542,1734915047470,-333.122309,0.00019992,3]
[346368543,1734915047480,-333.122309,0.00019993,3]
[346368544,1734915047489,-333.122309,0.00019993,2]
[346368545,1734915047500,-333.122309,0.00019994,2]
[346368546,1734915047510,-333.122309,0.00019994,3]
[346368547,1734915047519,-333.122309,0.00019995,2]
[346368548,1734915047529,-333.122309,0.00019996,2]
[346368549,1734915047539,-333.122309,0.00019996,3]
[346368550,1734915047548,-420.5311837,0.00019996,2]
[346368551,1734915047561,-420.5311837,0.00019996,2]
[346368552,1734915047570,-420.5311837,0.00019996,2]
[346368553,1734915047580,-420.5311837,0.00019996,2]
[346368554,1734915047590,-420.5311837,0.00019996,2]
[346368555,1734915047599,-420.5311837,0.00019996,2]
[346368556,1734915047609,-1957.163287,0.00019996,2]
[346368557,1734915047618,-1646.1878545,0.00019996,2]
[346368558,1734915047629,-1335.2124221,0.00019996,2]
[346368559,1734915047639,-1024.2369896,0.00019996,2]
[346368560,1734915047649,-713.2615571,0.00019996,2]
[346368561,1734915047660,-402.2861247,0.00019996,2]
[346368562,1734915047670,-1444.2119738,0.00019996,2]
[346368563,1734915047680,-1215.539261,0.00019996,2]
[346368564,1734915047691,-986.8665483,0.00019996,2]
[346368565,1734915047701,-758.1938356,0.00019996,2]
[346368566,1734915047712,-529.5211229,0.00019996,2]
[346368567,1734915047722,-300.8484102,0.00019996,2]
[346368568,1734915047732,-3626.4158694,0.00019996,2]
[346368569,1734915047742,-3052.2187506,0.00019996,2]
[346368570,1734915047751,-2478.0216318,0.00019996,2]
[346368571,1734915047761,-1903.824513,0.00019996,2]
[346368572,1734915047771,-1329.6273941,0.00019996,2]
[346368573,1734915047780,-755.4302753,0.00019996,2]
[346368574,1734915047791,-333.122309,0.00019997,3]
[346368575,1734915047802,-333.122309,0.00019997,2]
[346368576,1734915047821,-333.122309,0.00019998,2]
[346368577,1734915047830,-333.122309,0.00019998,3]
[346368578,1734915047840,-500.0,0.00019998,2]
[346368579,1734915047850,-300.0,0.00019999,2]
[346368580,1734915047859,-300.0,0.00019999,2]
[346368581,1734915047869,-666.0,0.00019999,2]
[346368582,1734915047879,-150.0,0.00019999,2]
[346368583,1734915047888,-333.122309,0.00019999,3]
[346368584,1734915047898,-333.122309,0.00019999,2]
[346368585,1734915047908,-333.122309,0.00019999,3]
[346368586,1734915047917,-333.122309,0.00019999,2]
[346368587,1734915047927,-333.122309,0.00019999,3]
[346368588,1734915047936,-664.99,0.00019999,2]
[346368589,1734915047947,-113272.27556688,0.00019999,2]
[346368590,1734915047960,-500.0,0.00019999,2]
[346368591,1734915047969,-500.0,0.00019999,2]
[346368592,1734915047979,-500.0,0.00019999,2]
[346368593,1734915047989,-500.0,0.00019999,2]
[346368594,1734915047998,-500.0,0.00019999,2]
[346368595,1734915048009,-500.0,0.00019999,2]
[346368596,1734915048018,-500.0,0.00019999,2]
[346368597,1734915048028,-500.0,0.00019999,2]
[346368598,1734915048037,-500.0,0.00019999,2]
[346368599,1734915048047,-500.0,0.00019999,2]
[346368600,1734915048061,-500.0,0.00019999,2]
[346368601,1734915048071,-500.0,0.00019999,2]
[346368602,1734915048081,-500.0,0.00019999,2]
[346368603,1734915048091,-500.0,0.00019999,2]
[346368604,1734915048101,-500.0,0.00019999,2]
[346368605,1734915048110,-500.0,0.00019999,2]
[346368606,1734915048120,-500.0,0.00019999,2]
[346368607,1734915048130,-375.59473333,0.00019999,2]
[346368608,1734915048139,-1133913.69708779,0.0002,3]
[346368609,1734915048149,-11891.09685855,0.0002,2]
[346368610,1734915048159,-10240.78445623,0.0002,3]
[346368611,1734915048169,-18759594.55241504,0.0002,2]
[346368612,1734915048664,-1101.0,0.0001984,2]
[346368613,1734915048673,-4278.07668012,0.0002,2]
[346368614,1734915048765,-1188.76947917,0.0002,2]
[346368615,1734915048796,-1910.06544479,0.0002,2]
[346368616,1734915049197,-152.956,0.0001984,2]
[346368617,1734915049207,-150.0,0.0001984,2]
[346368618,1734915049216,-1131.59596798,0.0002,2]
[346368619,1734915049235,-176.98,0.0001984,2]
[346368620,1734915049244,-10253.17808463,0.0002,2]
[346368621,1734915049730,-432.00902886,0.0002,2]
[346368622,1734915049741,-418.66907585,0.0002,2]
[346368623,1734915049755,-473.7733,0.0002,2]
[346368624,1734915049807,-2257.47540924,0.0002,2]
[346368625,1734915049818,-4733.5,0.0002,2]
[346368626,1734915049874,-42927.05943001,0.0002,2]
[346368627,1734915049885,-543.8500124,0.0002,2]
[346368635,1734915418749,160.31,0.00010137,2]
[346368741,1734916005152,-160.77,0.00013699,2]
[346368742,1734916005174,-925.1,0.0001685,2]
[346368743,1734916005195,-250.0,0.00018472,2]
[346368744,1734916005216,-250.0,0.00018699,2]
[346368745,1734916005237,-250.0,0.00018725,2]
[346368746,1734916005257,-1000.0,0.00018725,2]
[346368747,1734916005279,-300.0,0.00018776,2]
[346368748,1734916005299,-738.40686919,0.00018874,2]
[346368767,1734916231508,-1700.0,0.00014,2]
[346368768,1734916231518,-1288.64,0.00018573,2]
[346368769,1734916231527,-590.39,0.00018664,2]
[346368770,1734916231536,-463.84,0.00018892,2]
[346368771,1734916231546,-315.106,0.00019,2]
[346368772,1734916231556,-925.1,0.00019114,2]
[346368773,1734916231565,-1059.0,0.00019146,2]
[346368774,1734916231575,-500.0,0.00019178,2]
[346368775,1734916231584,-510.9697634,0.00019178,2]
[346368776,1734916231593,-500.0,0.00019178,2]
[346368777,1734916231602,-500.0,0.00019178,2]
[346368778,1734916231611,-500.0,0.00019178,2]
[346368779,1734916231621,-378.51420828,0.00019178,2]
[346368780,1734916231632,-121.48579172,0.00019178,2]
[346368781,1734916231641,-264.42073421,0.00019178,2]
[346368782,1734916231666,-235.57926579,0.00019178,2]
[346368783,1734916231675,-64.41073421,0.00019178,2]
[346368784,1734916231687,-435.58926579,0.00019178,2]
[346368785,1734916231696,-425.11869208,0.00019178,2]
[346368786,1734916231708,-185.16517172,0.00019178,2]
[346368787,1734916231718,-500.0,0.00019178,2]
[346368788,1734916231727,-133.64355803,0.00019178,2]
[346368789,1734916231740,-366.35644197,0.00019178,2]
[346368790,1734916231749,-205.31861019,0.00019178,2]
[346368791,1734916231816,-294.68138981,0.00019178,2]
[346368792,1734916231825,-500.0,0.00019178,2]
[346368793,1734916231835,-500.0,0.00019178,2]
[346368794,1734916231845,-500.0,0.00019178,2]
[346368795,1734916231855,-500.0,0.00019178,2]
[346368796,1734916231864,-190.98435655,0.00019178,2]
[346368797,1734916231874,-500.0,0.00019178,2]
[346368798,1734916231885,-500.0,0.00019178,2]
[346368799,1734916231894,-500.0,0.00019178,2]
[346368800,1734916231903,-500.0,0.00019178,2]
[346368801,1734916231913,-500.0,0.00019178,2]
[346368802,1734916231922,-199.97454028,0.00019178,2]
[346368803,1734916231932,-490.13543066,0.00019178,2]
[346368804,1734916231944,-345.66485822,0.00019178,2]
[346368806,1734916231953,-500.0,0.00019178,2]
[346368808,1734916231963,-500.0,0.00019178,2]
[346368810,1734916231972,-500.0,0.00019178,2]
[346368812,1734916231981,-500.0,0.00019178,2]
[346368814,1734916231991,-500.0,0.00019178,2]
[346368816,1734916232000,-500.0,0.00019178,2]
[346368818,1734916232009,-500.0,0.00019178,2]
[346368819,1734916232019,-500.0,0.00019178,2]
[346368820,1734916232028,-606.52,0.00019178,2]
[346368821,1734916232037,-500.0,0.00019178,2]
[346368823,1734916232046,-500.0,0.00019178,2]
[346368825,1734916232058,-500.0,0.00019178,2]
[346368827,1734916232067,-500.0,0.00019178,2]
[346368829,1734916232077,-500.0,0.00019178,2]
[346368830,1734916232086,-500.0,0.00019178,2]
[346368831,1734916232096,-500.0,0.00019178,2]
[346368832,1734916232106,-500.0,0.00019178,2]
[346368833,1734916232116,-500.0,0.00019178,2]
[346368834,1734916232352,-500.0,0.00019178,2]
[346368835,1734916232362,-562.44,0.00019178,2]
[346368836,1734916232371,-500.0,0.00019178,2]
[346368837,1734916232380,-500.0,0.00019178,2]
[346368838,1734916232389,-500.0,0.00019178,2]
[346368839,1734916232399,-500.0,0.00019178,2]
[346368840,1734916232408,-500.0,0.00019178,2]
[346368841,1734916232418,-500.0,0.00019178,2]
[346368842,1734916232427,-500.0,0.00019178,2]
[346368843,1734916232437,-500.0,0.00019178,2]
[346368844,1734916232446,-500.0,0.00019178,2]
[346368845,1734916232455,-500.0,0.00019178,2]
[346368846,1734916232465,-500.0,0.00019178,2]
[346368847,1734916232474,-500.0,0.00019178,2]
[346368848,1734916232484,-500.0,0.00019178,2]
[346368849,1734916232493,-500.0,0.00019178,2]
[346368850,1734916232502,-500.0,0.00019178,2]
[346368851,1734916232511,-500.0,0.00019178,2]
[346368852,1734916232520,-500.0,0.00019178,2]
[346368853,1734916232530,-279.02705847,0.00019178,2]
[346368854,1734916232539,-500.0,0.00019178,2]
[346368855,1734916232548,-500.0,0.00019178,2]
[346368856,1734916232558,-500.0,0.00019178,2]
[346368857,1734916232568,-500.0,0.00019178,2]
[346368858,1734916232577,-500.0,0.00019178,2]
[346368859,1734916232586,-500.0,0.00019178,2]
[346368860,1734916232595,-500.0,0.00019178,2]
[346368861,1734916232604,-500.0,0.00019178,2]
[346368862,1734916232614,-500.0,0.00019178,2]
[346368863,1734916232623,-511.14,0.00019178,2]
[346368864,1734916232633,-729.52,0.00019178,2]
[346368865,1734916232642,-500.0,0.00019178,2]
[346368866,1734916232652,-500.0,0.00019178,2]
[346368867,1734916232661,-500.0,0.00019178,2]
[346368868,1734916232670,-636.04688351,0.00019178,2]
[346368869,1734916232679,-500.0,0.00019178,2]
[346368870,1734916232688,-500.0,0.00019178,2]
[346368871,1734916232699,-500.0,0.00019178,2]
[346368872,1734916232711,-500.0,0.00019178,2]
[346368873,1734916232720,-500.0,0.00019178,2]
[346368874,1734916232730,-500.0,0.00019178,2]
[346368875,1734916232739,-500.0,0.00019178,2]
[346368876,1734916232750,-500.0,0.00019178,2]
[346368877,1734916232759,-501.14,0.00019178,2]
[346368878,1734916232768,-634.57,0.00019178,2]
[346368879,1734916232778,-780.06,0.00019178,2]
[346368880,1734916232789,-500.0,0.00019178,2]
[346368881,1734916232798,-500.0,0.00019178,2]
[346368882,1734916232808,-500.0,0.00019178,2]
[346368883,1734916232818,-500.0,0.00019178,2]
[346368884,1734916232828,-500.0,0.00019178,2]
[346368885,1734916232837,-500.0,0.00019178,2]
[346368886,1734916232847,-582.43578502,0.00019178,2]
[346368887,1734916232857,-633.52,0.00019178,2]
[346368888,1734916232866,-500.0,0.00019178,2]
[346368889,1734916232875,-629.03,0.00019178,2]
[346368890,1734916232885,-500.0,0.00019178,2]
[346368891,1734916232894,-500.0,0.00019178,2]
[346368892,1734916232903,-500.0,0.00019178,2]
[346368893,1734916232912,-500.0,0.00019178,2]
[346368894,1734916232922,-512.65,0.00019178,2]
[346368895,1734916232931,-500.0,0.00019178,2]
[346368896,1734916232940,-500.0,0.00019178,2]
[346368897,1734916232949,-500.0,0.00019178,2]
[346368898,1734916232959,-500.0,0.00019178,2]
[346368899,1734916232968,-507.34,0.00019178,2]
[346368900,1734916232977,-500.0,0.00019178,2]
[346368901,1734916232986,-958.25,0.00019178,2]
[346368902,1734916232996,-1121.35,0.00019178,2]
[346368903,1734916233005,-500.0,0.00019178,2]
[346368904,1734916233014,-500.0,0.00019178,2]
[346368905,1734916233024,-1693.04,0.00019178,2]
[346368906,1734916233033,-3064.32,0.00019178,2]
[346368907,1734916233042,-500.0,0.00019178,2]
[346368908,1734916233051,-540.71,0.00019178,2]
[346368909,1734916233063,-1613.470874,0.00019178,2]
[346368910,1734916233073,-630.9,0.00019178,2]
[346368911,1734916233082,-159.044859,0.00019178,2]
[346368912,1734916233092,-500.0,0.00019178,2]
[346368913,1734916233102,-180.606941,0.00019178,2]
[346368914,1734916233111,-1300.027125,0.00019178,2]
[346368915,1734916233121,-336.36563859,0.00019178,2]
[346368916,1734916233142,-449.32685517,0.00019178,2]
[346368917,1734916233153,-299.99,0.00019178,2]
[346368926,1734916237407,-44464.33231153,0.00019078,2]
[346368927,1734916237419,-496.99999,0.00019078,2]
[346368928,1734916237430,-6231.31666201,0.00019078,2]
[346368929,1734916237440,-1023.74679934,0.00019078,2]
[346368930,1734916237451,-6584.93280748,0.00019078,2]
[346368931,1734916237657,-97087.95292964,0.00019078,2]
[346368932,1734916237667,-302.69750624,0.00019178,2]
[346368933,1734916237676,-1111.56,0.00019178,2]
[346368934,1734916237685,-500.0,0.00019178,2]
[346368935,1734916237695,-1024.06,0.00019178,2]
[346368936,1734916237708,-772.27,0.00019178,2]
[346368937,1734916237716,-1934.39,0.00019178,2]
[346368938,1734916237726,-500.0,0.00019178,2]
[346368939,1734916237735,-560.82,0.00019178,2]
[346368940,1734916237747,-3543.54,0.00019178,2]
[346368941,1734916237757,-855.48,0.00019178,2]
[346368942,1734916237766,-1069.68,0.00019178,2]
[346368943,1734916237776,-500.0,0.00019178,2]
[346368944,1734916237785,-782.18,0.00019178,2]
[346368945,1734916237796,-4233.7,0.00019178,2]
[346368946,1734916237806,-908.07,0.00019178,2]
[346368947,1734916237818,-776.31,0.00019178,2]
[346368948,1734916237828,-500.0,0.00019178,2]
[346368949,1734916237837,-1059.36,0.00019178,2]
[346368951,1734916237847,-500.0,0.00019178,2]
[346368953,1734916237857,-500.0,0.00019178,2]
[346368955,1734916237867,-1019.52,0.00019178,2]
[346368957,1734916237876,-780.44,0.00019178,2]
[346368959,1734916237886,-500.0,0.00019178,2]
[346368961,1734916237895,-500.0,0.00019178,2]
[346368963,1734916237905,-500.0,0.00019178,2]
[346368965,1734916237915,-1104.92,0.00019178,2]
[346368967,1734916237924,-500.0,0.00019178,2]
[346368968,1734916237934,-1097.33,0.00019178,2]
[346368969,1734916237943,-500.0,0.00019178,2]
[346368970,1734916237952,-1239.45,0.00019178,2]
[346368971,1734916237961,-500.0,0.00019178,2]
[346368972,1734916237971,-1249.64,0.00019178,2]
[346368973,1734916237980,-2260.7,0.00019178,2]
[346368974,1734916237989,-1331.3,0.00019178,2]
[346368975,1734916237999,-500.0,0.00019178,2]
[346368976,1734916238008,-500.0,0.00019178,2]
[346368977,1734916238017,-2676.93,0.00019178,2]
[346368978,1734916238027,-1312.24,0.00019178,2]
[346368979,1734916238036,-806.4,0.00019178,2]
[346368980,1734916238045,-5856.15,0.00019178,2]
[346368981,1734916238054,-152.0,0.00019179,3]
[346368982,1734916238065,-683.8,0.00019349,2]
[346368983,1734916238075,-706.67,0.00019349,2]
[346368984,1734916238084,-500.0,0.00019349,2]
[346368985,1734916238094,-937.61,0.00019349,2]
[346368986,1734916238104,-737.7,0.00019349,2]
[346368987,1734916238114,-500.0,0.00019349,2]
[346368988,1734916238123,-1664.79,0.00019349,2]
[346368989,1734916238133,-4349.47,0.00019349,2]
[346368990,1734916238142,-500.0,0.00019349,2]
[346368991,1734916238151,-500.0,0.00019349,2]
[346368992,1734916238160,-1019.79,0.00019349,2]
[346368993,1734916238169,-1154.67,0.00019349,2]
[346368994,1734916238178,-1868.33,0.00019349,2]
[346368995,1734916238187,-795.04,0.00019349,2]
[346368996,1734916238196,-752.46,0.00019349,2]
[346368997,1734916238205,-760.32,0.00019349,2]
[346368998,1734916238214,-1264.17,0.00019349,2]
[346368999,1734916238223,-4419.14,0.00019349,2]
[346369000,1734916238232,-500.0,0.00019349,2]
[346369001,1734916238241,-598.6,0.00019349,2]
[346369002,1734916238250,-500.0,0.00019349,2]
[346369003,1734916238259,-500.0,0.00019349,2]
[346369004,1734916238267,-500.0,0.00019349,2]
[346369005,1734916238276,-500.0,0.00019349,2]
[346369006,1734916238285,-500.0,0.00019349,2]
[346369007,1734916238294,-500.0,0.00019349,2]
[346369008,1734916238304,-620.83,0.00019349,2]
[346369009,1734916238315,-500.0,0.00019349,2]
[346369010,1734916238325,-500.0,0.00019349,2]
[346369011,1734916238334,-821.0,0.00019349,2]
[346369012,1734916238344,-749.11,0.00019349,2]
[346369013,1734916238353,-500.0,0.00019349,2]
[346369014,1734916238363,-500.0,0.00019349,2]
[346369015,1734916238372,-500.0,0.00019349,2]
[346369016,1734916238381,-500.0,0.00019349,2]
[346369017,1734916238390,-501.63196194,0.0001935,2]
[346369018,1734916238400,-500.0,0.0001935,2]
[346369019,1734916238409,-500.0,0.0001935,2]
[346369020,1734916238418,-500.0,0.0001935,2]
[346369021,1734916238427,-500.0,0.0001935,2]
[346369022,1734916238436,-500.0,0.0001935,2]
[346369023,1734916238444,-500.0,0.0001935,2]
[346369024,1734916238453,-500.0,0.0001935,2]
[346369025,1734916238463,-500.0,0.0001935,2]
[346369026,1734916238472,-500.0,0.0001935,2]
[346369027,1734916238481,-500.0,0.0001935,2]
[346369028,1734916238489,-500.0,0.0001935,2]
[346369029,1734916238499,-500.0,0.0001935,2]
[346369030,1734916238508,-501.09658803,0.0001935,2]
[346369031,1734916238517,-500.0,0.0001935,2]
[346369032,1734916238527,-500.0,0.0001935,2]
[346369033,1734916238535,-500.0,0.0001935,2]
[346369034,1734916238545,-500.0,0.0001935,2]
[346369035,1734916238553,-500.0,0.0001935,2]
[346369036,1734916238565,-501.72678445,0.0001935,2]
[346369037,1734916238574,-500.0,0.0001935,2]
[346369038,1734916238583,-500.0,0.0001935,2]
[346369039,1734916238592,-500.0,0.0001935,2]
[346369040,1734916238601,-500.0,0.0001935,2]
[346369041,1734916238611,-500.0,0.0001935,2]
[346369042,1734916238621,-500.0,0.0001935,2]
[346369043,1734916238631,-500.0,0.0001935,2]
[346369044,1734916238640,-500.0,0.0001935,2]
[346369045,1734916238649,-500.0,0.0001935,2]
[346369046,1734916238658,-500.0,0.0001935,2]
[346369047,1734916238668,-500.0,0.0001935,2]
[346369048,1734916238676,-500.0,0.0001935,2]
[346369049,1734916238686,-500.0,0.0001935,2]
[346369050,1734916238697,-500.0,0.0001935,2]
[346369051,1734916238712,-500.0,0.0001935,2]
[346369052,1734916238722,-500.0,0.0001935,2]
[346369053,1734916238733,-500.0,0.0001935,2]
[346369054,1734916238743,-500.0,0.0001935,2]
[346369055,1734916238753,-500.0,0.0001935,2]
[346369056,1734916238762,-503.61634092,0.0001935,2]
[346369057,1734916238771,-179.0,0.0001935,2]
[346369058,1734916238780,-500.0,0.0001935,2]
[346369059,1734916238788,-500.0,0.0001935,2]
[346369060,1734916238798,-500.0,0.0001935,2]
[346369061,1734916238807,-500.0,0.0001935,2]
[346369062,1734916238819,-500.0,0.0001935,2]
[346369063,1734916238829,-500.0,0.0001935,2]
[346369064,1734916238838,-500.0,0.0001935,2]
[346369065,1734916238847,-550.24,0.0001935,2]
[346369066,1734916238857,-500.0,0.0001935,2]
[346369067,1734916238866,-500.0,0.0001935,2]
[346369068,1734916238876,-500.0,0.0001935,2]
[346369069,1734916238885,-500.0,0.0001935,2]
[346369070,1734916238894,-500.0,0.0001935,2]
[346369071,1734916238903,-500.0,0.0001935,2]
[346369072,1734916238913,-500.0,0.0001935,2]
[346369073,1734916238922,-500.0,0.0001935,2]
[346369074,1734916238931,-500.0,0.0001935,2]
[346369075,1734916238941,-500.0,0.0001935,2]
[346369076,1734916238951,-500.0,0.0001935,2]
[346369077,1734916238960,-500.0,0.0001935,2]
[346369078,1734916238969,-670.91,0.0001935,2]
[346369079,1734916238978,-500.0,0.0001935,2]
[346369080,1734916238987,-500.0,0.0001935,2]
[346369081,1734916238997,-500.0,0.0001935,2]
[346369082,1734916239007,-500.0,0.0001935,2]
[346369083,1734916239016,-500.0,0.0001935,2]
[346369084,1734916239025,-500.0,0.0001935,2]
[346369085,1734916239035,-500.0,0.0001935,2]
[346369086,1734916239044,-500.0,0.0001935,2]
[346369087,1734916239053,-500.0,0.0001935,2]
[346369088,1734916239063,-500.0,0.0001935,2]
[346369089,1734916239073,-500.0,0.0001935,2]
[346369090,1734916239082,-500.0,0.0001935,2]
[346369091,1734916239091,-829.85,0.0001935,2]
[346369092,1734916239100,-500.0,0.0001935,2]
[346369093,1734916239109,-500.0,0.0001935,2]
[346369094,1734916239118,-500.0,0.0001935,2]
[346369095,1734916239128,-500.0,0.0001935,2]
[346369096,1734916239137,-286.85,0.0001935,2]
[346369097,1734916239146,-500.0,0.0001935,2]
[346369098,1734916239155,-500.0,0.0001935,2]
[346369099,1734916239164,-500.0,0.0001935,2]
[346369100,1734916239173,-500.0,0.0001935,2]
[346369101,1734916239182,-690.07,0.0001935,2]
[346369102,1734916239191,-500.0,0.0001935,2]
[346369103,1734916239200,-500.0,0.0001935,2]
[346369105,1734916239209,-500.0,0.0001935,2]
[346369107,1734916239218,-500.0,0.0001935,2]
[346369109,1734916239227,-500.0,0.0001935,2]
[346369111,1734916239236,-159.51,0.0001935,2]
[346369113,1734916239246,-500.0,0.0001935,2]
[346369115,1734916239264,-500.0,0.0001935,2]
[346369117,1734916239274,-499.99998619,0.0001935,2]
[346369119,1734916239283,-500.0,0.0001935,2]
[346369122,1734916239292,-500.0,0.0001935,2]
[346369124,1734916239303,-500.0,0.0001935,2]
[346369125,1734916239320,-500.0,0.0001935,2]
[346369126,1734916239340,-500.0,0.0001935,2]
[346369128,1734916239351,-500.0,0.0001935,2]
[346369129,1734916239360,-724.65,0.0001935,2]
[346369130,1734916239369,-500.0,0.0001935,2]
[346369131,1734916239378,-500.0,0.0001935,2]
[346369132,1734916239388,-500.0,0.0001935,2]
[346369133,1734916239397,-500.0,0.0001935,2]
[346369134,1734916239406,-500.0,0.0001935,2]
[346369135,1734916239415,-500.0,0.0001935,2]
[346369136,1734916239424,-500.0,0.0001935,2]
[346369137,1734916239433,-500.0,0.0001935,2]
[346369138,1734916239442,-712.57,0.0001935,2]
[346369139,1734916239451,-500.0,0.0001935,2]
[346369140,1734916239460,-500.0,0.0001935,2]
[346369141,1734916239469,-500.0,0.0001935,2]
[346369142,1734916239478,-500.0,0.0001935,2]
[346369143,1734916239487,-730.89,0.0001935,2]
[346369144,1734916239497,-500.0,0.0001935,2]
[346369146,1734916239506,-500.0,0.0001935,2]
[346369147,1734916239516,-500.0,0.0001935,2]
[346369148,1734916239525,-496.62576094,0.0001935,2]
[346369149,1734916239534,-500.0,0.0001935,2]
[346369150,1734916239543,-500.0,0.0001935,2]
[346369151,1734916239553,-500.0,0.0001935,2]
[346369152,1734916239564,-500.0,0.0001935,2]
[346369153,1734916239573,-500.0,0.0001935,2]
[346369154,1734916239585,-500.0,0.0001935,2]
[346369155,1734916239595,-583.09,0.0001935,2]
[346369156,1734916239604,-500.0,0.0001935,2]
[346369157,1734916239613,-517.08,0.0001935,2]
[346369158,1734916239623,-500.0,0.0001935,2]
[346369159,1734916239633,-500.0,0.0001935,2]
[346369160,1734916239642,-500.0,0.0001935,2]
[346369161,1734916239652,-500.0,0.0001935,2]
[346369162,1734916239662,-500.0,0.0001935,2]
[346369163,1734916239671,-500.0,0.0001935,2]
[346369164,1734916239681,-500.0,0.0001935,2]
[346369165,1734916239691,-500.0,0.0001935,2]
[346369166,1734916239705,-270.8853266,0.0001935,2]
[346369167,1734916239715,-500.0,0.0001935,2]
[346369168,1734916239725,-500.0,0.0001935,2]
[346369169,1734916239735,-500.0,0.0001935,2]
[346369170,1734916239745,-500.0,0.0001935,2]
[346369171,1734916239755,-500.0,0.0001935,2]
[346369172,1734916239764,-542.54,0.0001935,2]
[346369173,1734916239774,-500.0,0.0001935,2]
[346369174,1734916239784,-660.92,0.0001935,2]
[346369175,1734916239793,-500.0,0.0001935,2]
[346369176,1734916239803,-500.0,0.0001935,2]
[346369177,1734916239814,-500.0,0.0001935,2]
[346369178,1734916239823,-915.66,0.0001935,2]
[346369179,1734916239833,-500.0,0.0001935,2]
[346369180,1734916239842,-500.0,0.0001935,2]
[346369181,1734916239851,-500.0,0.0001935,2]
[346369182,1734916239861,-651.96,0.0001935,2]
[346369183,1734916239871,-373.04437311,0.0001935,2]
[346369184,1734916239881,-500.0,0.0001935,2]
[346369185,1734916239890,-500.0,0.0001935,2]
[346369186,1734916239899,-777.05,0.0001935,2]
[346369187,1734916239909,-500.0,0.0001935,2]
[346369188,1734916239918,-500.0,0.0001935,2]
[346369189,1734916239927,-558.07,0.0001935,2]
[346369190,1734916239935,-662.07,0.0001935,2]
[346369191,1734916239945,-500.0,0.0001935,2]
[346369192,1734916239954,-500.0,0.0001935,2]
[346369193,1734916239964,-699.83,0.0001935,2]